[Event "GER-chW Blitz 2019"]
[Site "Magdeburg"]
[Date "2019.05.25"]
[Round "18.8"]
[White "Birkholz, Olga"]
[Black "Braje, Monika"]
[Result "1-0"]
[ECO "B01"]
[WhiteElo "2031"]
[BlackElo "1781"]
[Annotator "NA"]
[PlyCount "73"]
[EventDate "2019.05.25"]
[EventType "tourn"]
[EventCountry "GER"]
[SourceTitle "playchess.com"]
[Source "ChessBase"]
[SourceQuality "1"]
[TimeControl "180+2"]

1. e4 {[%emt 0:00:04]} d5 {[%emt 0:00:01]} 2. e5 {[%emt 0:00:04]} c5 {[%emt 0:00:03]} 3. f4 {[%emt 0:00:03]} Nc6 {[%emt 0:00:04]} 4. Nf3 {[%emt 0:00:01]} h6 {[%emt 0:00:20]} 5. Qe2 {[%emt 0:00:07]} Bg4 {[%emt 0:00:03]} 6. c3 {[%emt 0:00:02]} Qb6 {[%emt 0:00:09]} 7. d3 {[%emt 0:00:06]} Rd8 {[%emt 0:00:03]} 8. h3 {[%emt 0:00:09]} Bc8 {[%emt 0:00:04]} 9. g3 {[%emt 0:00:12]} e6 {[%emt 0:00:02]} 10. Bg2 {[%emt 0:00:02]} Qc7 {[%emt 0:00:04]} 11. Na3 {[%emt 0:00:06]} a6 {[%emt 0:00:01]} 12. Nc2 {[%emt 0:00:01]} Nge7 {[%emt 0:00:02]} 13. a4 {[%emt 0:00:01]} Nf5 {[%emt 0:00:04]} 14. g4 {[%emt 0:00:09]} Nfe7 {[%emt 0:00:13]} 15. O-O {[%emt 0:00:02]} Ng6 {[%emt 0:00:13]} 16. Bd2 {[%emt 0:00:18]} Be7 {[%emt 0:00:01]} 17. Rae1 {[%emt 0:00:10]} O-O {[%emt 0:00:02]} 18. Bh1 {[%emt 0:00:14]} Nh4 {[%emt 0:00:09]} 19. Be3 {[%emt 0:00:15]} Nxf3+ {[%emt 0:00:08]} 20. Qxf3 {[%emt 0:00:07]} d4 {[%emt 0:00:11]} 21. Bd2 {[%emt 0:00:15]} dxc3 {[%emt 0:00:04]} 22. bxc3 {[%emt 0:00:01]} Na5 {[%emt 0:00:07]} 23. Rb1 {[%emt 0:00:06]} b6 {[%emt 0:00:08]} 24. Qe2 {[%emt 0:00:05]} Qd7 {[%emt 0:00:07]} 25. Be4 {[%emt 0:00:04]} Qxa4 {[%emt 0:00:04]} 26. Ne3 {[%emt 0:00:07]} Nb3 {[%emt 0:00:16]} 27. Be1 {[%emt 0:00:09]} Na5 {[%emt 0:00:13]} 28. Rxb6 {[%emt 0:00:05]} c4 {[%emt 0:00:20]} 29. d4 {[%emt 0:00:12]} Nb3 {[%emt 0:00:04]} 30. f5 {[%emt 0:00:06]} exf5 {[%emt 0:00:07]} 31. gxf5 {[%emt 0:00:02]} Bg5 {[%emt 0:00:03]} 32. Nxc4 {[%emt 0:00:06]} a5 {[%emt 0:00:27]} 33. h4 {[%emt 0:00:02]} Be7 {[%emt 0:00:01]} 34. f6 {[%emt 0:00:00]} gxf6 {[%emt 0:00:02]} 35. exf6 {[%emt 0:00:02]} Ba3 {[%emt 0:00:03]} 36. Qg2+ {[%emt 0:00:01]} Kh8 {[%emt 0:00:02]} 37. Qg7# {[%emt 0:00:01]} 1-0

[Event "GER-chW Blitz 2019"]
[Site "Magdeburg"]
[Date "2019.05.25"]
[Round "18.9"]
[White "Rath, Alina"]
[Black "Schulze, Lara"]
[Result "0-1"]
[ECO "A21"]
[WhiteElo "2042"]
[BlackElo "2160"]
[Annotator "NA"]
[PlyCount "86"]
[EventDate "2019.05.25"]
[EventType "tourn"]
[EventCountry "GER"]
[SourceTitle "playchess.com"]
[Source "ChessBase"]
[SourceQuality "1"]
[TimeControl "180+2"]

1. c4 {[%emt 0:00:00]} e5 {[%emt 0:00:00]} 2. Nc3 {[%emt 0:00:00]} Bb4 {[%emt 0:00:00]} 3. Nd5 {[%emt 0:00:01]} Bc5 {[%emt 0:00:01]} 4. g3 {[%emt 0:00:01]} c6 {[%emt 0:00:02]} 5. Nc3 {[%emt 0:00:01]} Bb4 {[%emt 0:00:11]} 6. Bg2 {[%emt 0:00:01]} Bxc3 {[%emt 0:00:02]} 7. dxc3 {[%emt 0:00:02]} d6 {[%emt 0:00:02]} 8. Nf3 {[%emt 0:00:03]} Ne7 {[%emt 0:00:01]} 9. O-O {[%emt 0:00:01]} O-O {[%emt 0:00:03]} 10. Be3 {[%emt 0:00:03]} Na6 {[%emt 0:00:12]} 11. Qd2 {[%emt 0:00:02]} Be6 {[%emt 0:00:41]} 12. b3 {[%emt 0:00:02]} f6 {[%emt 0:00:04]} 13. Rad1 {[%emt 0:00:02]} Nf5 {[%emt 0:00:08]} 14. Bh3 {[%emt 0:00:10]} Nc5 {[%emt 0:00:50]} 15. Bxc5 {[%emt 0:01:12]} dxc5 {[%emt 0:00:06]} 16. Qc2 Qc8 17. Bg2 {[%emt 0:00:08]} Rd8 {[%emt 0:00:06]} 18. Nd2 {[%emt 0:00:04]} Qc7 {[%emt 0:00:38]} 19. Ne4 {[%emt 0:00:19]} b6 {[%emt 0:00:03]} 20. Rd2 {[%emt 0:00:03]} Rxd2 {[%emt 0:00:03]} 21. Nxd2 {[%emt 0:00:01]} Ne7 {[%emt 0:00:05]} 22. Rd1 {[%emt 0:00:06]} Rd8 {[%emt 0:00:01]} 23. Nf3 {[%emt 0:00:06]} Bf5 {[%emt 0:00:04]} 24. Qc1 {[%emt 0:00:04]} Rd7 {[%emt 0:00:04]} 25. Nh4 {[%emt 0:00:17]} Be6 {[%emt 0:00:01]} 26. Nf3 {[%emt 0:00:12]} Qd8 {[%emt 0:00:05]} 27. Rxd7 {[%emt 0:00:02]} Qxd7 {[%emt 0:00:00]} 28. Qd2 {[%emt 0:00:04]} Kf7 {[%emt 0:00:01]} 29. Qxd7 {[%emt 0:00:02]} Bxd7 {[%emt 0:00:01]} 30. Kf1 {[%emt 0:00:01]} b5 {[%emt 0:00:06]} 31. cxb5 {[%emt 0:00:03]} cxb5 {[%emt 0:00:01]} 32. Nd2 {[%emt 0:00:01]} Be6 {[%emt 0:00:03]} 33. Ne4 {[%emt 0:00:09]} c4 {[%emt 0:00:07]} 34. b4 {[%emt 0:00:06]} Nc8 {[%emt 0:00:05]} 35. Nc5 {[%emt 0:00:05]} Ke7 {[%emt 0:00:04]} 36. Bc6 {[%emt 0:00:05]} Nd6 {[%emt 0:00:02]} 37. Ke1 {[%emt 0:00:15]} Bc8 {[%emt 0:00:04]} 38. f3 {[%emt 0:00:07]} a6 {[%emt 0:00:01]} 39. Kd2 {[%emt 0:00:03]} Kd8 {[%emt 0:00:04]} 40. Bd5 {[%emt 0:00:05]} Kc7 {[%emt 0:00:03]} 41. h4 {[%emt 0:00:03]} h6 {[%emt 0:00:01]} 42. a3 {[%emt 0:00:01]} Nf5 {[%emt 0:00:03]} 43. g4 {[%emt 0:00:09]} Nxh4 {[%emt 0:00:01]} 0-1

[Event "GER-chW Blitz 2019"]
[Site "Magdeburg"]
[Date "2019.05.25"]
[Round "18.10"]
[White "Silz, Elisa"]
[Black "Kushka, Alena"]
[Result "1/2-1/2"]
[ECO "A43"]
[WhiteElo "1977"]
[BlackElo "2148"]
[Annotator "NA"]
[PlyCount "60"]
[EventDate "2019.05.25"]
[EventType "tourn"]
[EventCountry "GER"]
[SourceTitle "playchess.com"]
[Source "ChessBase"]
[SourceQuality "1"]
[TimeControl "180+2"]

1. d4 {[%emt 0:00:00]} Nf6 {[%emt 0:00:00]} 2. Nf3 {[%emt 0:00:00]} c5 {[%emt 0:00:00]} 3. d5 {[%emt 0:00:00]} b5 {[%emt 0:00:00]} 4. Bg5 {[%emt 0:00:01]} Qb6 {[%emt 0:00:02]} 5. Bxf6 {[%emt 0:00:02]} Qxf6 {[%emt 0:00:05]} 6. c3 {[%emt 0:00:01]} Bb7 {[%emt 0:00:12]} 7. e4 {[%emt 0:00:02]} a6 {[%emt 0:00:05]} 8. a4 {[%emt 0:00:08]} bxa4 {[%emt 0:00:10]} 9. Qxa4 {[%emt 0:00:13]} Qb6 {[%emt 0:00:08]} 10. Qc2 {[%emt 0:00:04]} d6 {[%emt 0:00:03]} 11. Nbd2 {[%emt 0:00:01]} g6 {[%emt 0:00:02]} 12. Nc4 {[%emt 0:00:02]} Qc7 {[%emt 0:00:02]} 13. Bd3 {[%emt 0:00:07]} Bg7 {[%emt 0:00:01]} 14. O-O {[%emt 0:00:07]} O-O {[%emt 0:00:02]} 15. Na5 {[%emt 0:00:06]} Nd7 {[%emt 0:00:17]} 16. Rfc1 {[%emt 0:00:17]} Nb6 {[%emt 0:00:08]} 17. Nxb7 {[%emt 0:00:02]} Qxb7 {[%emt 0:00:02]} 18. Nd2 {[%emt 0:00:05]} e6 {[%emt 0:00:13]} 19. Nc4 {[%emt 0:00:13]} exd5 {[%emt 0:00:10]} 20. Nxb6 {[%emt 0:00:04]} Qxb6 {[%emt 0:00:06]} 21. exd5 {[%emt 0:00:03]} Rfb8 {[%emt 0:00:08]} 22. Ra2 {[%emt 0:00:03]} a5 {[%emt 0:00:04]} 23. h3 {[%emt 0:00:12]} Qb7 {[%emt 0:00:30]} 24. Rca1 {[%emt 0:00:15]} h5 {[%emt 0:00:25]} 25. Bc4 {[%emt 0:00:24]} Qb6 {[%emt 0:00:11]} 26. b3 {[%emt 0:00:05]} Re8 {[%emt 0:00:04]} 27. Qd2 {[%emt 0:00:23]} Qd8 {[%emt 0:00:04]} 28. Ra4 {[%emt 0:00:12]} Qf6 {[%emt 0:00:07]} 29. Rxa5 {[%emt 0:00:14]} Rxa5 {[%emt 0:00:08]} 30. Rxa5 {[%emt 0:00:00]} Qxc3 {[%emt 0:00:02]} 1/2-1/2

[Event "GER-chW Blitz 2019"]
[Site "Magdeburg"]
[Date "2019.05.25"]
[Round "18.11"]
[White "Kotyk, Valeriya"]
[Black "Ries, Jutta"]
[Result "1-0"]
[ECO "A57"]
[WhiteElo "1739"]
[BlackElo "2017"]
[Annotator "NA"]
[PlyCount "103"]
[EventDate "2019.05.25"]
[EventType "tourn"]
[EventCountry "GER"]
[SourceTitle "playchess.com"]
[Source "ChessBase"]
[SourceQuality "1"]
[TimeControl "180+2"]

1. d4 {[%emt 0:00:00]} Nf6 {[%emt 0:00:00]} 2. c4 {[%emt 0:00:00]} c5 {[%emt 0:00:00]} 3. d5 {[%emt 0:00:02]} b5 {[%emt 0:00:01]} 4. cxb5 {[%emt 0:00:02]} a6 {[%emt 0:00:01]} 5. b6 {[%emt 0:00:00]} Bb7 {[%emt 0:00:04]} 6. Nc3 {[%emt 0:00:02]} g6 {[%emt 0:00:02]} 7. e4 {[%emt 0:00:02]} d6 {[%emt 0:00:04]} 8. Nf3 {[%emt 0:00:13]} Bg7 {[%emt 0:00:02]} 9. g3 {[%emt 0:00:02]} O-O 10. Bg2 Nbd7 {[%emt 0:00:05]} 11. O-O {[%emt 0:00:06]} Nxb6 {[%emt 0:00:02]} 12. Nd2 {[%emt 0:00:04]} a5 {[%emt 0:00:10]} 13. Re1 {[%emt 0:00:09]} Ba6 {[%emt 0:00:05]} 14. Bf1 {[%emt 0:00:12]} Bxf1 {[%emt 0:00:04]} 15. Nxf1 {[%emt 0:00:02]} Rb8 {[%emt 0:00:03]} 16. Ne3 {[%emt 0:00:09]} Qd7 {[%emt 0:00:06]} 17. f3 {[%emt 0:00:04]} Rb7 {[%emt 0:00:14]} 18. Qc2 {[%emt 0:00:08]} Rfb8 {[%emt 0:00:04]} 19. Rb1 {[%emt 0:00:01]} Qc8 {[%emt 0:00:17]} 20. Na4 {[%emt 0:00:17]} Nfd7 {[%emt 0:00:12]} 21. Nxb6 {[%emt 0:00:09]} Rxb6 {[%emt 0:00:05]} 22. Kg2 {[%emt 0:00:03]} Qb7 {[%emt 0:00:06]} 23. Nc4 {[%emt 0:00:05]} Rb4 {[%emt 0:00:15]} 24. Re2 {[%emt 0:00:15]} Qa6 {[%emt 0:00:00]} 25. b3 {[%emt 0:00:05]} a4 {[%emt 0:00:06]} 26. Bd2 {[%emt 0:00:02]} axb3 {[%emt 0:00:02]} 27. axb3 {[%emt 0:00:07]} R4b7 {[%emt 0:00:12]} 28. Re3 {[%emt 0:00:15]} Nb6 {[%emt 0:00:31]} 29. Na5 {[%emt 0:00:05]} Ra7 {[%emt 0:00:07]} 30. Nc6 {[%emt 0:00:01]} Rab7 {[%emt 0:00:19]} 31. Nxb8 {[%emt 0:00:02]} Rxb8 {[%emt 0:00:01]} 32. Bc3 {[%emt 0:00:01]} Nd7 {[%emt 0:00:07]} 33. Bxg7 {[%emt 0:00:03]} Kxg7 {[%emt 0:00:01]} 34. Qc3+ {[%emt 0:00:01]} f6 {[%emt 0:00:05]} 35. f4 {[%emt 0:00:03]} Rb4 {[%emt 0:00:04]} 36. Kf2 {[%emt 0:00:04]} Qa2+ {[%emt 0:00:01]} 37. Rb2 {[%emt 0:00:02]} Qa1 {[%emt 0:00:02]} 38. Re1 {[%emt 0:00:03]} Qa7 {[%emt 0:00:02]} 39. Kf3 {[%emt 0:00:03]} Qb6 {[%emt 0:00:04]} 40. Ree2 {[%emt 0:00:02]} Nb8 {[%emt 0:00:02]} 41. e5 {[%emt 0:00:04]} dxe5 {[%emt 0:00:16]} 42. fxe5 {[%emt 0:00:02]} Qb7 {[%emt 0:00:01]} 43. exf6+ {[%emt 0:00:08]} exf6 {[%emt 0:00:01]} 44. Qxc5 {[%emt 0:00:07]} Nd7 {[%emt 0:00:12]} 45. Re7+ {[%emt 0:00:11]} Kg8 {[%emt 0:00:01]} 46. Rxd7 {[%emt 0:00:08]} Qxd7 {[%emt 0:00:01]} 47. Qxb4 Qxd5+ 48. Qe4 {[%emt 0:00:04]} Qd1+ {[%emt 0:00:01]} 49. Kg2 {[%emt 0:00:04]} Qd6 {[%emt 0:00:05]} 50. Qc4+ {[%emt 0:00:05]} Kg7 {[%emt 0:00:01]} 51. Rc2 {[%emt 0:00:02]} Qd1 {[%emt 0:00:06]} 52. b4 {[%emt 0:00:07]} 1-0

[Event "GER-chW Blitz 2019"]
[Site "Magdeburg"]
[Date "2019.05.25"]
[Round "18.12"]
[White "Fuchs, Judith"]
[Black "Lubbe, Melanie"]
[Result "1-0"]
[ECO "A45"]
[WhiteElo "2218"]
[BlackElo "2278"]
[Annotator "NA"]
[PlyCount "167"]
[EventDate "2019.05.25"]
[EventType "tourn"]
[EventCountry "GER"]
[SourceTitle "playchess.com"]
[Source "ChessBase"]
[SourceQuality "1"]
[TimeControl "180+2"]

1. d4 {[%emt 0:00:00]} Nf6 {[%emt 0:00:00]} 2. Bf4 {[%emt 0:00:00]} g6 {[%emt 0:00:00]} 3. Nc3 {[%emt 0:00:01]} Bg7 {[%emt 0:00:02]} 4. Qd2 {[%emt 0:00:01]} d6 {[%emt 0:00:05]} 5. O-O-O {[%emt 0:00:07]} c6 {[%emt 0:00:10]} 6. h4 {[%emt 0:00:13]} b5 {[%emt 0:00:03]} 7. f3 {[%emt 0:00:19]} Nbd7 {[%emt 0:00:08]} 8. e4 {[%emt 0:00:03]} b4 {[%emt 0:00:02]} 9. Nce2 {[%emt 0:00:18]} a5 {[%emt 0:00:07]} 10. Bh6 {[%emt 0:00:04]} Bxh6 {[%emt 0:00:08]} 11. Qxh6 {[%emt 0:00:02]} a4 {[%emt 0:00:14]} 12. e5 {[%emt 0:00:10]} Nd5 {[%emt 0:00:14]} 13. exd6 {[%emt 0:00:09]} exd6 {[%emt 0:00:06]} 14. Nf4 {[%emt 0:00:21]} Nxf4 {[%emt 0:00:04]} 15. Qxf4 {[%emt 0:00:02]} Qf6 {[%emt 0:00:17]} 16. Re1+ {[%emt 0:00:07]} Kd8 {[%emt 0:00:12]} 17. Qe3 {[%emt 0:00:06]} Nb6 {[%emt 0:00:11]} 18. Nh3 {[%emt 0:00:17]} Nd5 {[%emt 0:00:03]} 19. Qg5 {[%emt 0:00:07]} Bd7 {[%emt 0:00:06]} 20. Bc4 {[%emt 0:00:08]} Qxg5+ {[%emt 0:01:11]} 21. Nxg5 {[%emt 0:00:02]} Be8 {[%emt 0:00:05]} 22. Re2 {[%emt 0:00:16]} h6 {[%emt 0:00:03]} 23. Ne4 {[%emt 0:00:02]} Kc7 {[%emt 0:00:02]} 24. Bxd5 cxd5 {[%emt 0:00:01]} 25. Nf6 {[%emt 0:00:07]} Bc6 {[%emt 0:00:02]} 26. Re7+ {[%emt 0:00:02]} Kb6 {[%emt 0:00:01]} 27. Rxf7 {[%emt 0:00:07]} Rhf8 {[%emt 0:00:00]} 28. Rxf8 {[%emt 0:00:03]} Rxf8 {[%emt 0:00:01]} 29. Ng4 {[%emt 0:00:01]} h5 {[%emt 0:00:01]} 30. Ne3 {[%emt 0:00:01]} Rf4 {[%emt 0:00:01]} 31. c3 {[%emt 0:00:02]} b3 {[%emt 0:00:03]} 32. axb3 {[%emt 0:00:02]} axb3 {[%emt 0:00:01]} 33. Kd2 {[%emt 0:00:00]} Bb7 {[%emt 0:00:04]} 34. Ke2 {[%emt 0:00:05]} Ba6+ {[%emt 0:00:01]} 35. Kf2 {[%emt 0:00:01]} Bc4 {[%emt 0:00:02]} 36. g3 {[%emt 0:00:03]} Rf6 {[%emt 0:00:01]} 37. Ra1 {[%emt 0:00:01]} Rf8 {[%emt 0:00:02]} 38. Ra4 {[%emt 0:00:01]} Kb5 {[%emt 0:00:01]} 39. Ra7 {[%emt 0:00:01]} Kb6 {[%emt 0:00:06]} 40. Rg7 {[%emt 0:00:04]} Rf6 {[%emt 0:00:00]} 41. Rd7 {[%emt 0:00:06]} Kc6 {[%emt 0:00:01]} 42. Re7 {[%emt 0:00:00]} Ba6 {[%emt 0:00:01]} 43. Re8 {[%emt 0:00:04]} Bd3 {[%emt 0:00:02]} 44. Rb8 {[%emt 0:00:02]} Bc2 {[%emt 0:00:01]} 45. Rc8+ {[%emt 0:00:04]} Kd7 {[%emt 0:00:01]} 46. Ra8 {[%emt 0:00:01]} Be4 {[%emt 0:00:05]} 47. f4 {[%emt 0:00:03]} Kc6 {[%emt 0:00:05]} 48. Ra3 {[%emt 0:00:07]} Bc2 {[%emt 0:00:01]} 49. Ra6+ {[%emt 0:00:02]} Kb5 {[%emt 0:00:03]} 50. Rb6+ {[%emt 0:00:05]} Kxb6 {[%emt 0:00:02]} 51. Nxd5+ {[%emt 0:00:01]} Kb5 {[%emt 0:00:01]} 52. Nxf6 {[%emt 0:00:01]} Kc4 {[%emt 0:00:00]} 53. Ke3 {[%emt 0:00:01]} Bf5 {[%emt 0:00:03]} 54. Ne8 {[%emt 0:00:03]} Kd5 {[%emt 0:00:01]} 55. Nf6+ {[%emt 0:00:06]} Ke6 {[%emt 0:00:01]} 56. Ne4 {[%emt 0:00:02]} Kd5 {[%emt 0:00:01]} 57. Nd2 {[%emt 0:00:02]} Bc2 {[%emt 0:00:02]} 58. c4+ {[%emt 0:00:01]} Ke6 {[%emt 0:00:01]} 59. Ne4 {[%emt 0:00:02]} d5 {[%emt 0:00:04]} 60. Ng5+ {[%emt 0:00:06]} Kd6 61. c5+ Kc6 {[%emt 0:00:01]} 62. Nf3 {[%emt 0:00:01]} Be4 {[%emt 0:00:03]} 63. Ne1 {[%emt 0:00:01]} Kb5 {[%emt 0:00:03]} 64. Nd3 {[%emt 0:00:05]} Kc6 {[%emt 0:00:04]} 65. Nc1 {[%emt 0:00:01]} Bc2 {[%emt 0:00:02]} 66. Kd2 {[%emt 0:00:01]} Kb5 {[%emt 0:00:06]} 67. Kc3 {[%emt 0:00:01]} Ka4 {[%emt 0:00:03]} 68. c6 {[%emt 0:00:02]} Kb5 {[%emt 0:00:06]} 69. c7 {[%emt 0:00:02]} Bf5 {[%emt 0:00:01]} 70. Nxb3 {[%emt 0:00:02]} Kc6 {[%emt 0:00:01]} 71. Nc5 {[%emt 0:00:02]} Kxc7 {[%emt 0:00:01]} 72. b4 {[%emt 0:00:01]} Kc6 {[%emt 0:00:00]} 73. Nd3 {[%emt 0:00:04]} Kb5 {[%emt 0:00:01]} 74. Ne5 {[%emt 0:00:01]} Be4 {[%emt 0:00:02]} 75. Nd7 {[%emt 0:00:03]} Kc6 {[%emt 0:00:03]} 76. Nf6 {[%emt 0:00:01]} Bf3 {[%emt 0:00:02]} 77. Kb3 {[%emt 0:00:01]} Kb5 {[%emt 0:00:00]} 78. Ka3 {[%emt 0:00:01]} Bg2 {[%emt 0:00:01]} 79. Ne8 {[%emt 0:00:03]} Be4 {[%emt 0:00:03]} 80. Nd6+ {[%emt 0:00:02]} Kc6 {[%emt 0:00:01]} 81. Nxe4 {[%emt 0:00:10]} dxe4 {[%emt 0:00:01]} 82. Kb3 {[%emt 0:00:01]} Kb5 {[%emt 0:00:12]} 83. d5 {[%emt 0:00:05]} Kb6 {[%emt 0:00:02]} 84. Kc3 {[%emt 0:00:01]} 1-0

[Event "GER-chW Blitz 2019"]
[Site "Magdeburg"]
[Date "2019.05.25"]
[Round "19.1"]
[White "Lubbe, Melanie"]
[Black "Roesler, Hannah Clara Hed"]
[Result "1-0"]
[ECO "A45"]
[WhiteElo "2278"]
[BlackElo "1619"]
[Annotator "NA"]
[PlyCount "69"]
[EventDate "2019.05.25"]
[EventType "tourn"]
[EventCountry "GER"]
[SourceTitle "playchess.com"]
[Source "ChessBase"]
[SourceQuality "1"]
[TimeControl "180+2"]

1. d4 {[%emt 0:00:00]} Nf6 {[%emt 0:00:01]} 2. Nc3 {[%emt 0:00:00]} d5 {[%emt 0:00:08]} 3. Bf4 {[%emt 0:00:00]} e6 {[%emt 0:00:04]} 4. Nb5 {[%emt 0:00:05]} Na6 {[%emt 0:00:16]} 5. e3 {[%emt 0:00:01]} c6 {[%emt 0:00:12]} 6. Nc3 {[%emt 0:00:01]} Nb8 {[%emt 0:00:14]} 7. a3 {[%emt 0:00:02]} Bd6 {[%emt 0:00:12]} 8. Nge2 {[%emt 0:00:08]} O-O {[%emt 0:00:12]} 9. Bg5 {[%emt 0:00:10]} Nbd7 {[%emt 0:00:18]} 10. h4 {[%emt 0:00:06]} h6 {[%emt 0:00:08]} 11. Bf4 {[%emt 0:00:02]} e5 {[%emt 0:00:11]} 12. Bh2 {[%emt 0:00:13]} Ng4 {[%emt 0:00:13]} 13. Bg3 {[%emt 0:00:02]} Ndf6 {[%emt 0:00:08]} 14. dxe5 {[%emt 0:00:14]} Bxe5 {[%emt 0:00:12]} 15. Qd2 {[%emt 0:00:12]} Bf5 {[%emt 0:00:24]} 16. O-O-O {[%emt 0:00:05]} Qb6 {[%emt 0:00:04]} 17. Bxe5 {[%emt 0:00:17]} Nxe5 {[%emt 0:00:01]} 18. Nd4 {[%emt 0:00:02]} Bh7 {[%emt 0:00:04]} 19. f3 {[%emt 0:00:06]} Nc4 {[%emt 0:00:01]} 20. Bxc4 {[%emt 0:00:01]} dxc4 {[%emt 0:00:01]} 21. g4 {[%emt 0:00:08]} Rad8 {[%emt 0:00:01]} 22. Qf2 {[%emt 0:00:04]} Qa5 {[%emt 0:00:03]} 23. Rhg1 {[%emt 0:00:12]} b5 {[%emt 0:00:04]} 24. g5 {[%emt 0:00:03]} b4 {[%emt 0:00:07]} 25. axb4 {[%emt 0:00:12]} Qa1+ {[%emt 0:00:03]} 26. Nb1 {[%emt 0:00:01]} Nd5 27. Nxc6 {[%emt 0:00:13]} Rd7 {[%emt 0:00:06]} 28. e4 {[%emt 0:00:05]} Nb6 {[%emt 0:00:03]} 29. Rxd7 {[%emt 0:00:03]} Nxd7 {[%emt 0:00:01]} 30. gxh6 {[%emt 0:00:02]} g6 {[%emt 0:00:07]} 31. Ne7+ {[%emt 0:00:07]} Kh8 {[%emt 0:00:05]} 32. Qd4+ {[%emt 0:00:01]} f6 {[%emt 0:00:08]} 33. Qxd7 {[%emt 0:00:01]} c3 {[%emt 0:00:07]} 34. Nxg6+ {[%emt 0:00:09]} Kg8 {[%emt 0:00:04]} 35. Qg7# 1-0

[Event "GER-chW Blitz 2019"]
[Site "Magdeburg"]
[Date "2019.05.25"]
[Round "19.2"]
[White "Ries, Jutta"]
[Black "Fuchs, Judith"]
[Result "1-0"]
[ECO "A03"]
[WhiteElo "2017"]
[BlackElo "2218"]
[Annotator "NA"]
[PlyCount "41"]
[EventDate "2019.05.25"]
[EventType "tourn"]
[EventCountry "GER"]
[SourceTitle "playchess.com"]
[Source "ChessBase"]
[SourceQuality "1"]
[TimeControl "180+2"]

1. f4 {[%emt 0:00:00]} d5 {[%emt 0:00:00]} 2. Nf3 {[%emt 0:00:00]} c5 {[%emt 0:00:00]} 3. b3 {[%emt 0:00:03]} Nc6 {[%emt 0:00:03]} 4. Bb2 {[%emt 0:00:01]} Nf6 {[%emt 0:00:01]} 5. e3 {[%emt 0:00:01]} e6 {[%emt 0:00:06]} 6. Bb5 {[%emt 0:00:04]} Bd7 {[%emt 0:00:01]} 7. O-O {[%emt 0:00:02]} Qc7 {[%emt 0:00:03]} 8. Bxc6 {[%emt 0:00:09]} Bxc6 {[%emt 0:00:10]} 9. Ne5 {[%emt 0:00:00]} Bb5 {[%emt 0:00:03]} 10. d3 {[%emt 0:00:02]} Nd7 {[%emt 0:00:06]} 11. c4 {[%emt 0:00:16]} Bc6 {[%emt 0:00:25]} 12. Nxc6 {[%emt 0:00:02]} Qxc6 {[%emt 0:00:06]} 13. Nd2 {[%emt 0:00:02]} f6 {[%emt 0:00:15]} 14. Qf3 {[%emt 0:00:02]} Bd6 {[%emt 0:00:07]} 15. f5 {[%emt 0:00:26]} Ne5 {[%emt 0:00:32]} 16. Bxe5 {[%emt 0:00:10]} Bxe5 {[%emt 0:00:05]} 17. Rac1 {[%emt 0:00:04]} Qd6 {[%emt 0:01:04]} 18. fxe6 {[%emt 0:00:23]} Bxh2+ {[%emt 0:00:07]} 19. Kh1 {[%emt 0:00:01]} Rd8 {[%emt 0:00:11]} 20. Qh5+ {[%emt 0:00:01]} Ke7 {[%emt 0:00:09]} 21. Qf7# {[%emt 0:00:03]} 1-0

[Event "GER-chW Blitz 2019"]
[Site "Magdeburg"]
[Date "2019.05.25"]
[Round "19.3"]
[White "Kushka, Alena"]
[Black "Kotyk, Valeriya"]
[Result "1-0"]
[ECO "A57"]
[WhiteElo "2148"]
[BlackElo "1739"]
[Annotator "NA"]
[PlyCount "79"]
[EventDate "2019.05.25"]
[EventType "tourn"]
[EventCountry "GER"]
[SourceTitle "playchess.com"]
[Source "ChessBase"]
[SourceQuality "1"]
[TimeControl "180+2"]

1. d4 {[%emt 0:00:00]} Nf6 {[%emt 0:00:00]} 2. c4 {[%emt 0:00:00]} c5 {[%emt 0:00:00]} 3. d5 {[%emt 0:00:01]} b5 {[%emt 0:00:00]} 4. cxb5 a6 5. f3 {[%emt 0:00:05]} d6 {[%emt 0:00:02]} 6. e4 {[%emt 0:00:01]} axb5 {[%emt 0:00:08]} 7. Bxb5+ {[%emt 0:00:02]} Bd7 {[%emt 0:00:01]} 8. Bxd7+ {[%emt 0:00:06]} Nbxd7 {[%emt 0:00:02]} 9. Ne2 {[%emt 0:00:01]} g6 {[%emt 0:00:02]} 10. O-O Bg7 11. Nec3 {[%emt 0:00:09]} O-O {[%emt 0:00:02]} 12. a4 {[%emt 0:00:08]} Qb6 {[%emt 0:00:10]} 13. Nb5 {[%emt 0:00:12]} Ne5 {[%emt 0:00:06]} 14. Kh1 {[%emt 0:00:25]} c4 {[%emt 0:00:19]} 15. N1c3 {[%emt 0:00:23]} Nd3 {[%emt 0:00:06]} 16. Qe2 {[%emt 0:00:01]} Nd7 {[%emt 0:00:12]} 17. Be3 {[%emt 0:00:02]} Qb7 {[%emt 0:00:09]} 18. b3 {[%emt 0:00:06]} N3e5 {[%emt 0:00:23]} 19. bxc4 {[%emt 0:00:05]} Rfc8 {[%emt 0:00:01]} 20. Bd4 {[%emt 0:00:25]} Nxc4 {[%emt 0:00:07]} 21. Bxg7 {[%emt 0:00:03]} Kxg7 {[%emt 0:00:02]} 22. f4 {[%emt 0:00:20]} Ndb6 {[%emt 0:00:12]} 23. Nd4 {[%emt 0:00:23]} Qa6 {[%emt 0:00:12]} 24. e5 {[%emt 0:00:05]} dxe5 {[%emt 0:00:08]} 25. fxe5 {[%emt 0:00:03]} Na5 {[%emt 0:00:30]} 26. Qf3 {[%emt 0:00:09]} Rf8 {[%emt 0:00:02]} 27. Ncb5 {[%emt 0:00:03]} Rac8 {[%emt 0:00:07]} 28. e6 {[%emt 0:00:04]} f6 {[%emt 0:00:03]} 29. d6 {[%emt 0:00:12]} exd6 {[%emt 0:00:07]} 30. Nxd6 {[%emt 0:00:03]} Rc7 {[%emt 0:00:12]} 31. N4b5 {[%emt 0:00:06]} Rc5 {[%emt 0:00:03]} 32. e7 {[%emt 0:00:02]} Ra8 {[%emt 0:00:30]} 33. e8=Q {[%emt 0:00:04]} Rxe8 {[%emt 0:00:02]} 34. Nxe8+ {[%emt 0:00:01]} Kf7 {[%emt 0:00:00]} 35. Qxf6+ {[%emt 0:00:05]} Kxe8 {[%emt 0:00:01]} 36. Rae1+ {[%emt 0:00:03]} Kd7 {[%emt 0:00:01]} 37. Qd6+ {[%emt 0:00:02]} Kc8 {[%emt 0:00:09]} 38. Qxc5+ {[%emt 0:00:02]} Kb8 39. Qc7+ Ka8 40. Rf8+ 1-0